Cogmind - Beta 17.1 @@@ ROGUE MODE // 2026.09.23 @ 03:52:40 Player: jfk Result: Destroyed by YI-UF0 with YI-UF0's Doublenader Performance ------------- Evolutions (0) 0 Regions Visited (2) 400 Robots Destroyed (13) 65 Value Destroyed (135) 135 Prototype IDs (2) 40 Alien Tech Used (0) 0 Bonus (0) 0 TOTAL SCORE: 640 Bonus ------- None Cogmind --------- Core Integrity 0/250 Matter 273/300 Energy 99/100 System Corruption 0% Temperature Cool (0) Movement Core (50) Location -10/Mines Parts ------- > --- POWER (1) -------- (None) > --- PROPULSION (2) --- (None) > --- UTILITY (2) ------ Signal Interpreter > --- WEAPON (2) ------- (None) > --- INVENTORY (5) ---- Grenade Launcher Blade Trap Blade Trap Peak State ------------ > --- POWER ------------ Ion Engine > --- PROPULSION ------- Aluminum Leg Aluminum Leg > --- UTILITY ---------- Signal Interpreter Improved Terrain Scanner > --- WEAPON ----------- Medium Laser Light Cannon > --- INVENTORY -------- Light Treads Heat Sink [Rating: 9] Favorites ----------- Power Ion Engine Engine Ion Engine Propulsion Aluminum Leg Leg Aluminum Leg Utility Signal Interpreter Device Improved Terrain Scanner Storage Small Storage Unit Processor Signal Interpreter Weapon Medium Laser Energy Gun Medium Laser Ballistic Gun Makeshift Shrapnel Gun Ballistic Cannon Light Cannon Launcher Grenade Launcher Build | -11 -10 -10 ------- Run | Yrd Mat Min Slots Evolved . | . . . Power . | . . . Propulsion . | . . . Utility . | . . . Weapon . | . . . Parts Attached 14 | 7 4 3 Power 2 | 2 . . Engine 2 | 2 . . Core . | . . . Reactor . | . . . Propulsion 2 | 2 . . Treads . | . . . Leg 2 | 2 . . Wheel . | . . . Hover . | . . . Flight . | . . . Utility 5 | 2 2 1 Device 3 | 1 1 1 Storage 1 | 1 . . Processor 1 | . 1 . Hackware . | . . . Protection . | . . . Artifact . | . . . Weapon 5 | 1 2 2 Energy Gun 2 | 1 1 . Energy Cannon . | . . . Ballistic Gun 1 | . . 1 Ballistic Cannon 1 | . 1 . Launcher 1 | . . 1 Special Weapon . | . . . Impact Weapon . | . . . Slashing Weapon . | . . . Piercing Weapon . | . . . Special Melee Weapon . | . . . Unidentified Prototypes . | . . . Parts Lost 7 | . . 7 Power 1 | . . 1 Propulsion 2 | . . 2 Utility 2 | . . 2 Weapon 2 | . . 2 Highest Loss Streak 6 | . . 6 To Critical Strikes . | . . . Average Backups 3 | 5 5 2 Power . | . . . Propulsion 1 | 2 1 . Utility . | . 1 . Weapon 1 | 1 1 . Tool/Special . | . . . Unused Backups 5 | . 4 1 Power . | . . . Propulsion 4 | . 3 1 Utility . | . . . Weapon 1 | . 1 . Tool/Special . | . . . Average Slot Usage (%) 73 | . 88 62 Engine 9 | . 11 8 Leg 21 | . 28 17 Device 8 | . 14 4 Storage 2 | . 5 . Processor 11 | . 7 14 Energy Gun 7 | . 12 2 Ballistic Cannon 7 | . 6 8 Launcher 3 | . . 5 Peak Build Rating 9 | 7 9 9 Average Rating 5 | 4 7 4 On Entrance 5 | . 7 9 Avg Prop Armor Cover (%) . | . . . Naked Turns . | . . . Heaviest Build 13 | 13 13 11 Greatest Support 20 | 20 20 20 Greatest Overweight (x) . | . . . Average Overweight (x) . | . . . Largest Inventory Capacity 8 | 8 8 5 Average Capacity 5 | 7 6 5 Most Carried 8 | 8 8 5 Average Carried 4 | 5 5 3 Final Capacity 8 | 8 5 5 Final Carried 8 | 8 3 3 Class Distribution -------------------- 100% | Mutant Dominant Class ---------------- Mutant | -10/Materials Mutant | -10/Mines Resources | -11 -10 -10 ----------- Run | Yrd Mat Min Matter Collected 442 | 212 208 22 Remotely . | . . . Salvage Created 258 | 168 61 29 Parts 21 | 9 7 5 Haulers Intercepted . | . . . Recyclers Shooed 1 | . 1 . Parts Field Recycled . | . . . Retrieved Matter . | . . . Parts Self-Destructed . | . . . Prevented . | . . . Parts Restored . | . . . Kills | -11 -10 -10 ------- Run | Yrd Mat Min Combat Hostiles Destroyed 9 | . 5 4 Guns 2 | . 1 1 Cannons 4 | . 4 . AOE 3 | . . 3 Classes Destroyed 5 | 3 2 . Worker 1 | 1 . . Tunneler 2 | 2 . . Recycler 1 | 1 . . Swarmer 8 | . 4 4 Grunt 1 | . 1 . Best Kill Streak 3 | 3 2 3 Combat Bots Only 3 | . 2 3 Max Kills in Single Turn 2 | 1 1 2 Gunslinging . | . . . Exploded 2 | . . 2 Melee . | . . . Uniques/NPCs Destroyed . | . . . Combat | -11 -10 -10 -------- Run | Yrd Mat Min Hostile Shots Fired 88 | . 62 26 Missed 25 | . 20 5 Hits 63 | . 42 21 Projectile 63 | . 42 21 AOE 14 | . . 14 Damage Taken 877 | . 346 531 Core 264 | . 45 219 Absorbed by Shields . | . . . Core Remaining (%) 100 | 100 . . Volleys Fired 53 | 14 31 8 Largest 2 | 1 2 2 Hottest 80 | 50 80 80 Shots Fired 62 | 14 34 14 Gun 28 | 14 8 6 Cannon 32 | . 26 6 Launcher 2 | . . 2 Special . | . . . Kinetic 32 | . 26 6 Thermal 28 | 14 8 6 Explosive 2 | . . 2 Electromagnetic . | . . . Robot Hit Streak 11 | 6 11 1 Robot Miss Streak 5 | 2 4 5 Penetration Max . | . . . Secondary Targets . | . . . Shots Hit Robots 32 | 11 18 3 Core Hits 15 | 5 6 4 Critical Kills . | . . . Critical Parts Destroyed . | . . . Critical Strikes 1 | 1 . . Burn 1 | 1 . . Melee Attacks . | . . . Impact . | . . . Slashing . | . . . Piercing . | . . . Sneak Attacks . | . . . Combat Hostiles . | . . . Follow-up Attacks . | . . . Damage Inflicted 639 | 139 319 181 Guns 226 | 139 75 12 Cannons 277 | . 237 40 Explosions 129 | . . 129 Melee . | . . . Ramming 7 | . 7 . Kinetic 277 | . 237 40 Thermal 226 | 139 75 12 Explosive 129 | . . 129 Electromagnetic . | . . . Impact . | . . . Slashing . | . . . Piercing . | . . . Highest Corruption . | . . . Average Corruption . | . . . Corruption Purged . | . . . Corruption Blocked . | . . . Overload Shots . | . . . Overflow Damage 12 | . 12 . Projectiles 12 | . 12 . Explosions . | . . . Melee . | . . . Knockbacks 8 | . 8 . Impact . | . . . Kinetic 8 | . 8 . Secondary . | . . . Self-Inflicted Damage . | . . . Shots . | . . . Rammed . | . . . Targets Rammed 1 | . 1 . Kicked 1 | . 1 . Crushed . | . . . Highest Temperature 90 | 50 62 90 Average Temperature 27 | 21 20 42 Received Heat Transfer 24 | . 24 . Siege Activations . | . . . Martial Activations . | . . . Shielding Activations . | . . . Robots Disrupted . | . . . Combat Hostiles . | . . . Robots Corrupted . | . . . Combat Hostiles . | . . . Parts Fried . | . . . Impact Corruptions . | . . . Robots Melted . | . . . Combat Hostiles . | . . . Parts Melted 1 | 1 . . Heat Transferred 740 | 481 222 37 Parts Sabotaged . | . . . Parts Stolen . | . . . Parts Stripped . | . . . Power Chain Reactions . | . . . Alert | -11 -10 -10 ------- Run | Yrd Mat Min Maximum Alert Level . | . . . Low Security (%) 100 | 100 100 100 Level 1 . | . . . Level 2 . | . . . Level 3 . | . . . Level 4 . | . . . Level 5 . | . . . High Security . | . . . Max Security . | . . . Peak Influence 127 | 5 40 127 Initial 3 | . 3 . Average 20 | 1 10 32 Influence Increases 299 | 20 132 147 Destroy 0b10 Robot/C 180 | . 100 80 Destroy 0b10 Robot/NC 20 | 20 . . Destroy Leader 30 | . 10 20 Successful Hack 7 | . 7 . Destroy Structure 17 | . . 17 Lose Combat Pursuer 45 | . 15 30 Influence Decreases 299 | 15 137 147 Entered New Map 2 | . 2 . Time Decay 267 | 15 135 117 Lost Part 30 | . . 30 Squads Dispatched 2 | . 2 . Investigation 1 | . 1 . Extermination . | . . . Reinforcement 1 | . 1 . Assault . | . . . Garrison . | . . . Intercept . | . . . Searches Triggered . | . . . Construction Impeded . | . . . Haulers Reinforced . | . . . Active Scanning Responses . | . . . Cargo Convoy Interrupts . | . . . Stealth | -11 -10 -10 --------- Run | Yrd Mat Min Distress Signals 2 | . 2 . Communications Jammed . | . . . Distress Signals . | . . . Times Spotted 15 | . 9 6 Peak Tracking Total 4 | . 4 3 Tactical Retreats 4 | . 1 3 Traps | -11 -10 -10 ------- Run | Yrd Mat Min Traps Triggered 2 | . 2 . Indirectly . | . . . Trap Hack Attempts . | . . . Triggered . | . . . Disarmed . | . . . Reprogrammed . | . . . Reused . | . . . Traps Extracted . | . . . Installed 2 | . . 2 Triggered . | . . . Most Traps Carried 4 | . . 4 Machines | -11 -10 -10 ---------- Run | Yrd Mat Min Machines Disabled . | . . . Max in Single Turn . | . . . Machines Repaired . | . . . Machines Dismantled . | . . . Machines Sabotaged . | . . . Overloaded Fab Kills . | . . . Hacking | -11 -10 -10 --------- Run | Yrd Mat Min Machines Accessed 3 | . 3 . Terminals 2 | . 2 . Fabricators . | . . . Repair Stations . | . . . Recycling Units 1 | . 1 . Scanalyzers . | . . . Garrison Access . | . . . Total Hacks 4 | . 4 . Successful 4 | . 4 . Failed . | . . . Catastrophic . | . . . Database Lockouts . | . . . Manual . | . . . Terminals 3 | . 3 . Fabricators . | . . . Repair Stations . | . . . Recycling Units 1 | . 1 . Scanalyzers . | . . . Garrison Access . | . . . Terminal Hacks 3 | . 3 . Record 1 | . 1 . Prototype ID Bank 1 | . 1 . Registered Components 1 | . 1 . Fabricator Hacks . | . . . Repair Station Hacks . | . . . Recycling Unit Hacks 1 | . 1 . Report Inventory 1 | . 1 . Scanalyzer . | . . . Garrison Access Hacks . | . . . Unauthorized Hacks . | . . . Terminals . | . . . Fabricators . | . . . Repair Stations . | . . . Recycling Units . | . . . Scanalyzers . | . . . Garrison Access . | . . . Data Cores Recovered . | . . . Used . | . . . Hacking Detections 1 | . 1 . Full Trace Events . | . . . Feedback Events . | . . . Feedback Blocked . | . . . Robot Schematics Acquired . | . . . Robots Built . | . . . Authchips . | . . . Time . | . . . Total Robot Build Rating . | . . . Part Schematics Acquired . | . . . Parts Built . | . . . Authchips . | . . . Time . | . . . Total Part Build Rating . | . . . Part Studies Acquired . | . . . Parts Repaired . | . . . Time . | . . . Parts Recycled . | . . . Recycled Matter . | . . . Retrieved Matter . | . . . Retrieved Components . | . . . Parts Scanalyzed . | . . . Part Schematics Acquired . | . . . Parts Damaged . | . . . Bothacking | -11 -10 -10 ------------ Run | Yrd Mat Min Used RIF Installer . | . . . Robots Hacked . | . . . Non-combat . | . . . Combat . | . . . Robot Hacks Applied . | . . . Relay Couplers Released . | . . . Fabnet Peak Effective % . | . . . Robots Rewired . | . . . Allies Hacked . | . . . Hacks Repelled . | . . . Allies | -11 -10 -10 -------- Run | Yrd Mat Min Total Allies . | . . . Largest Group . | . . . Highest-Rated Group . | . . . Highest-Rated Ally . | . . . Total Orders . | . . . Ally Attacks . | . . . Total Damage . | . . . Kills . | . . . Allies Corrupted . | . . . Allies Melted . | . . . Intel | -11 -10 -10 ------- Run | Yrd Mat Min Active Infowar (turns) 540 | 44 407 89 Terrain 326 | . 237 89 Seismic 214 | 44 170 . Robot Analysis Total . | . . . Derelict Logs Recovered 1 | . . 1 Drone Launches . | . . . Drone Recoveries . | . . . Exploration | -11 -10 -10 ------------- Run | Yrd Mat Min Turns Passed 1077 | 129 408 540 Spaces Moved 755 | 82 270 403 Core 199 | 33 . 166 Treads . | . . . Legs 556 | 49 270 237 Wheels . | . . . Hover . | . . . Flight . | . . . Fastest Speed 50 | 50 120 50 Average Speed 101 | 91 120 91 Slowest Speed 120 | 120 120 120 Overloaded Moves . | . . . Propulsion Burnouts . | . . . Robots Hopped . | . . . Potential Cave-ins . | . . . Cave-ins Triggered . | . . . Exploration Rate (%) 34 | 4 50 50 Regions Visited 2 Branch Regions 1 Pre-discovered Areas 1 | . . 1 Known Exits Taken 1 | . 1 . Unknown Exits Taken 1 | 1 . . Scrap Searched 1 | . . 1 Spaces Dug . | . . . Terrain Destroyed 17 | . . 17 Melee . | . . . Projectile . | . . . AOE 17 | . . 17 Terrain Rammed . | . . . Walls Destroyed . | . . . Machines Disabled . | . . . Actions | -11 -10 -10 --------- Run | Yrd Mat Min Total 1006 | 120 322 564 Wait 144 | 5 7 132 Move 753 | 81 269 403 Hop . | . . . Pick Up 26 | 13 5 8 Fast Attach 1 | 1 . . Attach 12 | 5 5 2 Detach . | . . . Swap 3 | 1 . 2 Drop 11 | . 4 7 Fire 53 | 14 31 8 Melee . | . . . Ram . | . . . Kick 1 | . 1 . Crush . | . . . Escape Stasis . | . . . Rewire . | . . . Trap 2 | . . 2 Miscellaneous . | . . . Route ------- -11/Scrapyard -10/Materials (discovered 2 exits: [*Mat] / *Min) -10/Mines (discovered 1 exit: [*Exi]) History --------- Turn | Location | Event 21 | -11/Scrapyard | Discovered new exit (range 15) 130 | -11/Scrapyard | Entered Materials 326 | -10/Materials | Build established: Mutant 448 | -10/Materials | Discovered new exit (range 7) 520 | -10/Materials | Discovered new exit (range 13) 537 | -10/Materials | Identified exit to Mines 538 | -10/Materials | Entered Mines 539 | -10/Mines | YI-UF0 nonchalantly dropped a Grenade Launcher on the ground 572 | -10/Mines | Deemed a non-threat by the Exiles lab entrance 572 | -10/Mines | Discovered new exit (range 5) 602 | -10/Mines | Learned location of Zion (-7) 733 | -10/Mines | Found a hidden stash of uninstalled traps 830 | -10/Mines | A weapon hastily lodged in a ceiling crevice suddenly fell to the ground 860 | -10/Mines | Core integrity fell below 50% 864 | -10/Mines | Core integrity fell below 20% 894 | -10/Mines | Lost 6 parts (1p2n1u2w) 1078 | -10/Mines | Destroyed by YI-UF0 with YI-UF0's Doublenader Last Messages --------------- 00784_ Acquired Blade Trap. 00830_ A Mak. Shrapnel Gun has been hastily shoved under some rubble with a note attached: "In case of Swarmers." 00831_ Dropped Med. Laser. 00833_ Acquired Mak. Shrapnel Gun. 00854_ Dropped Grenade Launcher. 00855_ Lgt. Cannon destroyed. 00856_ Acquired Grenade Launcher. 00857_ Aluminum Leg destroyed. 00857_ Lgt. Ion Engine destroyed. 00859_ Mak. Shrapnel Gun destroyed. 00860_ The unstable cave ceiling collapses. 00861_ Aluminum Leg destroyed. 00863_ Heat Sink destroyed. 00864_ The unstable cave ceiling collapses. 00915_ Dropped Blade Trap. 00916_ Installed Blade Trap. 00917_ Dropped Blade Trap. 00918_ Installed Blade Trap. 01005_ The unstable cave ceiling collapses. Map ----- +----------------------------------------------------+ | ??????????????????????????????????????????? | | ??????????????????????????????????????????? | | ??????????????????????????????????????????? | | ??????????????????????????????????????????? | | ???????????????????????#??????????????????? | | ??????????????????????? ??????????????????? | | ??????????????????????? ??????????????????? | | ??????????????????????# #?###?????????????? | | ??????????????????????# ? #?????????????? | | ??????????????????????# #?# #?????????????? | | ??????????????????????# #?# #?????????????? | | ?????#####????????????# #?# #?????????????? | | ????## #????????????# ### #?????????????? | | ??### #????????????# ## ###???????????? | | ?## #???????????## # #???######??? | | ?# ####???????## ##### #??? | | # #???????# #??? | | # ### #???????# *= #??? | | # #?# #???????# ## #### #??? | | # #?# ######### #### #??# #??? | | #?# ##??# #??# #??? | | #?# #### #### ##???# #??######??? | | #?# #??# #??# ##????# #??????????? | | ### #??# #??# ####??# #??????????? | | # ## #??# #??# ^^ #??# #??????????? | | ### ?# ###?? ??#####@#??# #??????????? | | ??## #?# #????"""??????# #??# ######?????? | | ???# #?# #????"""??????# #??# #?????? | | ???# #?# #????"""??????# #??###### #?????? | | ???# #?# #???? ??????#g#???????# #?????? | | ???# ### #?????????????# ####????# #?????? | | ???# #?????????????# #??### #?????? | | #### ####?????????????### #?## ##????? | | # ##?????????????????# ### ##???? | | #??????????????#?##[ ##??? | | #?????????????? ?# #??? | | ### ####### #???? ?# #??? | | ??## #???? ?## #??? | | ???### ## ###?????#? ??## ##??? | | ?????#### ## #????????? ???# ####???? | | ????????# ## #???#????? #??# #??????? | | ????????# ## #????????# #??## #??????? | | ??????### ## ##???????# #???## #??????? | | ?#???## ## #????????# #???### ##?????? | | ?#??## # #????????# #??## # #?????? | | ????# # #????????# #??# ## #?????? | | ???## # #???????## #??# # ##??#?? | | ???# #?????### ##?# # #????? | | ?# ## #????## #?# ## #????? | | # #### #???## #### # #????? | +----------------------------------------------------+ Best States ------------- Heat Dissipation 35 Energy Generation 10 Energy Capacity 250 Matter Stores 300 Matter Capacity 300 Sight Range 16 Terrain Scan Range 16 Terrain Scan Density 10 Evasion (%) 55 Item Schematics ----------------- None Robot Schematics ------------------ None Fabricated ------------ Nothing Repaired ---------- Nothing Studied --------- None Alien Tech Used ----------------- None Achievements -------------- DATA ERROR: Steam Global Achievement% For Emergencies Only Organ Harvest Challenges ------------ None Game ------ Seed DiametricBurstMagmablaster Manual? 0 Play Time 00:14:18 Cumulative 393.9 hours Start 2026.09.23 @ 03:37:57 End 2026.09.23 @ 03:52:40 Sessions 1 Manual Loads 0 Difficulty Rogue Special Mode None Game No. 141 Rogue 29 Adventurer 0 Explorer 112 Win Type - Total 26 Types 15/3/1/1/1/2/1/2/0/0 Lore% 40 Gallery% 64 Achievement% 44 Wizard Run 0 Options --------- Layout 0 ASCII 1 Keyboard 0 Movement Mouse Keybinds 0 Fullscreen 2 Font 24/Smallcaps Map View 38x25 Zoom Use 97% Tactical HUD 1 Map Filters NONE Filters NONE Steam 1 RUN: aaa475c4-cee2-4a24-b6c4-bf1d2aa0b132